bitfinex/quotes_BTCUSD_20230115
["timestamp","ask_amount","ask_price","bid_price","bid_amount"]
[1673799697589,0.00577852,20895.0,20894.0,1.478512]
[1673799698102,0.00577852,20895.0,20894.0,1.48063215]
[1673799698354,0.00577852,20895.0,20894.0,1.68063215]
[1673799699478,0.00577852,20895.0,20894.0,1.48063215]
[1673799699982,0.00577852,20895.0,20894.0,1.68063215]
[1673799701044,4.00577852,20895.0,20894.0,1.48063215]
[1673799702902,4.00577852,20895.0,20894.0,1.92866592]
[1673799703195,4.00577852,20895.0,20894.0,1.48063215]
[1673799703421,4.00577852,20895.0,20894.0,1.83259815]
[1673799704218,3.127142,20895.0,20894.0,2.28613384]
[1673799704968,3.127142,20895.0,20894.0,2.15226813]
[1673799705217,3.127142,20895.0,20894.0,1.54464629]
[1673799705516,3.127142,20895.0,20894.0,1.050212]
[1673799705755,3.58300755,20895.0,20894.0,1.050212]
[1673799707561,3.58300755,20895.0,20894.0,0.571606]
[1673799708627,3.58300755,20895.0,20894.0,1.050212]
[1673799709152,3.127142,20895.0,20894.0,1.050212]
[1673799709616,3.127142,20895.0,20894.0,1.44165989]
[1673799709879,3.127142,20895.0,20894.0,0.093]
[1673799710129,3.57645423,20895.0,20894.0,0.093]
[1673799710387,3.447719,20895.0,20894.0,0.09393]
[1673799710644,3.8367202,20895.0,20894.0,0.09393]
[1673799710927,3.5161432,20895.0,20894.0,0.00093]
[1673799711176,3.5161432,20895.0,20894.0,0.00693]
[1673799711177,3.5231432,20895.0,20894.0,0.00693]
[1673799711689,3.141142,20895.0,20894.0,0.971142]
[1673799711991,3.134142,20895.0,20894.0,0.958142]
[1673799712240,3.127142,20895.0,20894.0,1.36403556]
[1673799714089,3.134142,20895.0,20894.0,0.964142]
[1673799714341,3.127142,20895.0,20894.0,0.958142]
[1673799714736,3.127142,20895.0,20894.0,0.995142]
[1673799714737,3.127142,20895.0,20894.0,0.958142]
[1673799714963,3.127142,20895.0,20894.0,0.967642]
[1673799714964,3.134142,20895.0,20894.0,0.967642]
[1673799715175,3.134142,20895.0,20894.0,1.34934838]
[1673799715176,3.127142,20895.0,20894.0,1.34934838]
[1673799715631,3.127142,20895.0,20894.0,1.38634838]
[1673799717218,3.127142,20895.0,20894.0,1.68634838]
[1673799717630,3.127142,20895.0,20894.0,1.38634838]
[1673799718789,3.127142,20895.0,20894.0,1.003642]
[1673799719022,3.5727196,20895.0,20894.0,0.04643]
[1673799719483,3.5727196,20895.0,20894.0,0.524106]
[1673799720409,3.127142,20895.0,20894.0,1.002712]
[1673799721101,3.127142,20895.0,20894.0,1.39175173]
[1673799721532,3.127142,20895.0,20894.0,1.69175173]
[1673799721748,3.127142,20895.0,20894.0,1.39175173]
[1673799721970,3.127142,20895.0,20894.0,1.69175173]
[1673799722187,3.127142,20895.0,20894.0,1.39175173]
[1673799723328,3.127142,20895.0,20894.0,1.39231266]
[1673799723811,3.127142,20895.0,20894.0,1.69231266]
[1673799724060,3.127142,20895.0,20894.0,1.30327293]
[1673799724301,3.127142,20895.0,20894.0,1.81632595]
[1673799724538,3.127142,20895.0,20894.0,2.10048664]
[1673799724775,3.127142,20895.0,20894.0,1.93813224]
[1673799725065,3.127142,20895.0,20894.0,2.13813224]
[1673799725549,3.127142,20895.0,20894.0,2.13938224]
[1673799726268,3.127142,20895.0,20894.0,2.10238224]
[1673799726506,3.127142,20895.0,20894.0,2.19538224]
[1673799726748,3.127142,20895.0,20894.0,2.61412464]
[1673799726991,3.127142,20895.0,20894.0,1.94343293]
[1673799727464,3.127142,20895.0,20894.0,1.72960289]
[1673799727700,3.127142,20895.0,20894.0,1.94404076]
[1673799727934,3.127142,20895.0,20894.0,1.70004253]
[1673799728176,3.127142,20895.0,20894.0,1.69944527]
[1673799728415,3.127142,20895.0,20894.0,1.77077555]
[1673799728681,3.12703838,20895.0,20894.0,1.92820273]
[1673799728934,3.12703838,20895.0,20894.0,2.07137561]
[1673799729177,3.12703838,20895.0,20894.0,2.21387384]
[1673799729639,3.12703838,20895.0,20894.0,2.00004253]
[1673799729884,3.12703838,20895.0,20894.0,2.07130166]
[1673799730134,3.12703838,20895.0,20894.0,2.35658472]
[1673799730858,3.12703838,20895.0,20894.0,2.07130166]
[1673799731831,3.12703838,20895.0,20894.0,1.83676095]
[1673799732067,3.12703838,20895.0,20894.0,2.1135196]
[1673799732307,3.12703838,20895.0,20894.0,2.39836871]
[1673799732601,3.12703838,20895.0,20894.0,1.74218322]
[1673799732844,3.12703838,20895.0,20894.0,1.95573142]
[1673799733091,3.12703838,20895.0,20894.0,2.25573142]
[1673799733338,3.12703838,20895.0,20894.0,1.95573142]
[1673799733585,3.50868457,20895.0,20894.0,1.058962]
[1673799733844,3.50868457,20895.0,20894.0,0.09325]
[1673799734132,3.12703838,20895.0,20894.0,0.09325]
[1673799734676,3.12703838,20895.0,20894.0,0.092]
[1673799734677,3.53837144,20895.0,20894.0,0.092]
[1673799735200,3.53837144,20895.0,20893.0,0.478622]
[1673799735438,3.53837144,20895.0,20894.0,0.006]
[1673799735439,3.55337144,20895.0,20894.0,0.006]
[1673799736209,3.53837144,20895.0,20893.0,0.478608]
[1673799736441,3.55337144,20895.0,20894.0,0.478606]
[1673799736698,3.55337144,20895.0,20894.0,0.487106]
[1673799736943,3.55337144,20895.0,20894.0,0.971712]
[1673799738155,3.14203838,20895.0,20894.0,0.97230303]
[1673799738397,3.14203838,20895.0,20894.0,1.38292889]
[1673799738631,3.14203838,20895.0,20894.0,1.73979452]
[1673799740550,3.14203838,20895.0,20894.0,1.62905127]
[1673799741053,3.14203838,20895.0,20894.0,1.27230303]
[1673799741311,3.14131623,20895.0,20894.0,1.27230303]
[1673799741592,3.14131623,20895.0,20894.0,1.74286404]
[1673799741816,3.12631623,20895.0,20894.0,2.093546]
[1673799742088,3.13331623,20895.0,20894.0,1.72321152]
[1673799742336,3.12631623,20895.0,20894.0,1.93571635]
[1673799742597,3.12731623,20895.0,20894.0,2.0217135]
[1673799742872,3.12631623,20895.0,20894.0,1.9357135]
[1673799743129,3.12631623,20895.0,20894.0,2.0227135]
[1673799743647,3.12631623,20895.0,20894.0,1.73733746]
[1673799743950,3.12631623,20895.0,20894.0,2.0227135]
[1673799744750,3.12631623,20895.0,20894.0,1.73733746]
[1673799745310,3.12631623,20895.0,20894.0,2.10923717]
[1673799745572,3.12631623,20895.0,20894.0,2.02279917]
[1673799745827,3.12631623,20895.0,20894.0,1.40963489]
[1673799746578,3.12631623,20895.0,20894.0,1.41022301]
[1673799746823,3.12631623,20895.0,20894.0,1.82354063]
[1673799747091,3.12631623,20895.0,20894.0,1.9661439]
[1673799747366,3.12631623,20895.0,20894.0,1.85223816]
[1673799747616,3.12631623,20895.0,20894.0,1.48160012]
[1673799747917,3.12631623,20895.0,20894.0,1.89288346]
[1673799748144,3.12631623,20895.0,20894.0,1.76458346]
[1673799748402,3.12631623,20895.0,20894.0,1.67758346]
[1673799748955,3.12731623,20895.0,20894.0,1.76358346]
[1673799749502,3.12731623,20895.0,20894.0,1.78670599]
[1673799749746,3.12731623,20895.0,20894.0,1.35230012]
[1673799750252,3.12731623,20895.0,20894.0,1.71010797]
[1673799752098,3.12731623,20895.0,20894.0,1.70951985]
[1673799752857,3.12731623,20895.0,20894.0,1.71064235]
[1673799753122,3.12731623,20895.0,20894.0,2.0663294]
[1673799753347,3.12731623,20895.0,20894.0,1.99497626]
[1673799753844,3.12731623,20895.0,20894.0,1.90908817]
[1673799754092,3.11731623,20895.0,20894.0,1.91021067]
[1673799754336,3.11731623,20895.0,20894.0,1.54356045]
[1673799754575,3.11731623,20895.0,20894.0,1.90712428]
[1673799754576,3.02281623,20895.0,20894.0,1.90712428]
[1673799755563,3.02281623,20895.0,20894.0,2.27816109]
[1673799755863,3.02281623,20895.0,20894.0,1.47840178]
[1673799756099,3.02281623,20895.0,20894.0,1.83675555]
[1673799757089,3.02281623,20895.0,20894.0,1.83675621]
[1673799758307,3.02281623,20895.0,20894.0,1.47992427]
[1673799759039,3.02281623,20895.0,20894.0,1.69403264]
[1673799759286,3.02281623,20895.0,20894.0,1.97674074]
[1673799760021,3.02281623,20895.0,20894.0,2.34810927]
[1673799760264,3.02281623,20895.0,20894.0,2.70493295]
[1673799760805,3.02281623,20895.0,20894.0,2.41892696]
[1673799763036,3.02281623,20895.0,20894.0,2.06210328]
[1673799763333,3.02281623,20895.0,20894.0,2.48879306]
[1673799763584,3.02281623,20895.0,20894.0,2.41899404]
[1673799764530,3.02281623,20895.0,20894.0,2.40452193]
[1673799764794,3.02281623,20895.0,20894.0,2.70452193]
[1673799765278,3.02281623,20895.0,20894.0,2.40452193]
[1673799765528,3.02281623,20895.0,20894.0,2.26180863]
[1673799766041,3.02281623,20895.0,20894.0,2.26185002]
[1673799766280,3.02281623,20895.0,20894.0,2.04763117]
[1673799766516,3.02281623,20895.0,20894.0,2.26184582]
[1673799767013,3.02281623,20895.0,20894.0,2.04763117]
[1673799767267,3.02281623,20895.0,20894.0,2.34763117]
[1673799767524,3.02281623,20895.0,20894.0,2.2618822]
[1673799767773,3.02281623,20895.0,20894.0,2.2718822]
[1673799768291,3.05281623,20895.0,20894.0,2.2718877]
[1673799768758,3.05281623,20895.0,20894.0,2.35763117]
[1673799769515,3.05281623,20895.0,20894.0,2.05763117]
[1673799769762,3.05281623,20895.0,20894.0,1.55295025]
[1673799770263,3.05281623,20895.0,20894.0,1.83847814]
[1673799770489,3.05281623,20895.0,20894.0,1.55295025]
[1673799771016,3.47895073,20895.0,20894.0,1.56145025]
[1673799771284,3.05281623,20895.0,20894.0,0.52434483]
[1673799771539,3.05281623,20895.0,20894.0,0.38145894]
[1673799771540,3.62949323,20895.0,20894.0,0.38145894]
[1673799772039,4.62158355,20895.0,20894.0,0.38145894]
[1673799772302,4.11805295,20895.0,20894.0,0.38145894]
[1673799772569,4.10805295,20895.0,20894.0,0.38145894]
[1673799772819,4.10805295,20895.0,20894.0,0.78256494]
[1673799772820,3.85095295,20895.0,20894.0,0.78256494]
[1673799773063,3.53037595,20895.0,20894.0,0.78256494]
[1673799773338,3.54337595,20895.0,20894.0,0.78856494]
[1673799773870,3.05481623,20895.0,20894.0,0.78856494]
[1673799774120,3.05481623,20895.0,20894.0,0.93145083]
[1673799774374,3.05481623,20895.0,20894.0,1.85310711]
[1673799774632,3.05481623,20895.0,20894.0,2.06738642]
[1673799774873,3.05481623,20895.0,20894.0,1.92450053]
[1673799775126,3.05481623,20895.0,20894.0,2.20402842]
[1673799775127,3.04181623,20895.0,20894.0,2.20402842]
[1673799775377,3.04181623,20895.0,20894.0,2.50402842]
[1673799775623,3.04281623,20895.0,20894.0,2.54502842]
[1673799775864,3.04181623,20895.0,20894.0,2.28974911]
[1673799776129,3.04181623,20895.0,20894.0,2.36111198]
[1673799776392,3.04281623,20895.0,20894.0,2.44011198]
[1673799777640,3.03781623,20895.0,20894.0,2.08322122]
[1673799778394,3.03781623,20895.0,20894.0,1.64017094]
[1673799779136,3.03781623,20895.0,20894.0,2.06686072]
[1673799780170,2.79262323,20895.0,20894.0,3.09594064]
[1673799780427,1.21931923,20895.0,20894.0,3.27191469]
[1673799780685,0.27339423,20895.0,20894.0,2.40233025]
[1673799780957,0.00662858,20898.0,20894.0,2.40233025]
[1673799781183,0.00662858,20898.0,20896.0,0.63279453]
[1673799781439,0.00662858,20898.0,20897.0,2.39139133]
[1673799781689,0.21456166,20906.0,20898.0,0.2]
[1673799781944,0.64936088,20907.0,20904.0,0.64257039]
[1673799781945,0.39249992,20907.0,20904.0,0.64257039]
[1673799782194,0.39651758,20906.0,20905.0,1.44152079]
[1673799782450,0.39651758,20906.0,20905.0,1.15593395]
[1673799782699,0.38066588,20907.0,20905.0,2.09985483]
[1673799782939,0.38066588,20907.0,20906.0,0.35684275]
[1673799783188,0.00569793,20907.0,20906.0,1.12909589]
[1673799783443,0.00569793,20907.0,20906.0,1.14363729]
[1673799783953,0.00569793,20907.0,20906.0,0.786831]
[1673799784191,0.00569793,20907.0,20906.0,0.9291729]
[1673799784448,0.00569793,20907.0,20906.0,1.24072552]
[1673799784949,0.00569793,20907.0,20906.0,0.578831]
[1673799785202,0.11254793,20907.0,20906.0,0.578831]
[1673799785453,0.49056999,20907.0,20906.0,0.578831]
[1673799785948,0.49056999,20907.0,20906.0,0.1005]
[1673799786439,0.49056999,20907.0,20906.0,0.0085]
[1673799786705,0.49056999,20907.0,20906.0,0.0935]
[1673799786706,0.49156999,20907.0,20906.0,0.0935]
[1673799786961,0.49156999,20907.0,20906.0,0.0085]
[1673799786962,0.11254793,20907.0,20906.0,0.0085]
[1673799787214,0.60150819,20907.0,20906.0,0.0475]
[1673799787712,0.60150819,20907.0,20906.0,0.0085]
[1673799788089,0.60950819,20907.0,20906.0,0.0095]
[1673799788090,0.60150819,20907.0,20906.0,0.0085]
[1673799788260,0.49465819,20907.0,20906.0,0.039]
[1673799789252,0.00569793,20907.0,20906.0,0.478331]
[1673799789483,0.01369793,20907.0,20906.0,1.20924752]
[1673799789729,0.01369793,20907.0,20906.0,1.2168303]
[1673799789730,0.00569793,20907.0,20906.0,1.2168303]
[1673799789977,0.00569793,20907.0,20906.0,1.2558303]
[1673799790207,0.00569793,20907.0,20906.0,1.4168303]
[1673799790454,0.00569793,20907.0,20906.0,1.2558303]
[1673799790691,0.00569793,20907.0,20906.0,1.2168303]
[1673799790931,0.00669793,20907.0,20906.0,1.4801613]
[1673799791230,0.00669793,20907.0,20906.0,1.48007852]
[1673799791476,0.60739488,20907.0,20906.0,0.0935]
[1673799791723,0.60739488,20907.0,20906.0,0.085]
[1673799792459,0.60739488,20907.0,20904.0,0.478359]
[1673799792460,0.60639488,20907.0,20904.0,0.478359]
[1673799792699,0.50850488,20907.0,20906.0,0.078]
[1673799792942,0.50750488,20907.0,20906.0,0.0085]
[1673799793220,0.52250488,20907.0,20906.0,0.0095]
[1673799793456,0.60847924,20907.0,20906.0,0.0095]
[1673799793711,0.50162924,20907.0,20906.0,0.0095]
[1673799794431,0.48662924,20907.0,20906.0,0.0085]
[1673799795014,0.48662924,20907.0,20905.0,0.0085]
[1673799795489,0.48662924,20907.0,20906.0,0.09989]
[1673799795490,0.02069793,20907.0,20906.0,0.09989]
[1673799795728,0.00569793,20907.0,20906.0,1.73961354]
[1673799796005,0.02069793,20907.0,20906.0,1.73961354]
[1673799796262,0.00569793,20907.0,20906.0,1.73961354]
[1673799796500,0.00669793,20907.0,20906.0,1.78261354]
[1673799796744,0.00569793,20907.0,20906.0,1.73961354]
[1673799796998,0.00669793,20907.0,20906.0,1.78261354]
[1673799797245,0.00669793,20907.0,20906.0,1.73961354]
[1673799797481,0.00769793,20907.0,20906.0,1.71972354]
[1673799797727,0.00769793,20907.0,20906.0,1.41972354]
[1673799797969,0.00769793,20907.0,20906.0,1.23488795]
[1673799798221,0.00769793,20907.0,20906.0,1.82136369]
[1673799798471,0.00769793,20907.0,20906.0,1.89916369]
[1673799798725,0.00569793,20907.0,20906.0,1.82016369]
[1673799798957,0.00669793,20907.0,20906.0,2.49438251]
[1673799799227,0.00669793,20907.0,20906.0,2.09816369]
[1673799799463,0.00669793,20907.0,20906.0,2.46167588]
[1673799799711,0.00569793,20907.0,20906.0,2.02016369]
[1673799799966,0.00569793,20907.0,20906.0,2.09816369]
[1673799799967,0.00669793,20907.0,20906.0,2.09816369]
[1673799800238,0.00569793,20907.0,20906.0,2.02016369]
[1673799800485,0.00669793,20907.0,20906.0,2.09816369]
[1673799801284,0.00669793,20907.0,20906.0,2.26504429]
[1673799801525,0.11354793,20907.0,20906.0,1.034662]
[1673799801772,0.49111594,20907.0,20906.0,1.034662]
[1673799802037,0.11354793,20907.0,20906.0,1.034662]
[1673799802525,0.36501116,20907.0,20906.0,0.956662]
[1673799802782,0.36501116,20907.0,20906.0,0.478331]
[1673799803025,0.36701116,20907.0,20906.0,0.956662]
[1673799803269,0.00769793,20907.0,20906.0,0.956662]
[1673799803507,0.00769793,20907.0,20906.0,1.028662]
[1673799803508,0.00969793,20907.0,20906.0,1.028662]
[1673799804016,0.00969793,20907.0,20906.0,2.00586078]
[1673799804264,0.00969793,20907.0,20906.0,1.81513483]
[1673799805028,0.00969793,20907.0,20906.0,1.52874478]
[1673799805272,0.00569793,20907.0,20906.0,1.45674478]
[1673799805511,0.00769793,20907.0,20906.0,1.60654478]
[1673799805750,0.00692814,20907.0,20906.0,1.60654478]
[1673799805993,0.00692814,20907.0,20906.0,2.08374647]
[1673799806750,0.00692814,20907.0,20906.0,2.01174647]
[1673799806751,0.00492814,20907.0,20906.0,2.01174647]
[1673799806999,0.00492814,20907.0,20906.0,2.10174647]
[1673799807245,0.00492814,20907.0,20906.0,2.01174647]
[1673799808438,0.00492814,20907.0,20906.0,2.10174647]
[1673799808740,0.00665462,20912.0,20907.0,0.0012767]
[1673799808992,0.00665462,20912.0,20911.0,0.0772]
[1673799808993,0.11350462,20912.0,20911.0,0.0772]
[1673799809229,0.4811275,20912.0,20911.0,1.62537695]
[1673799809473,0.4811275,20912.0,20911.0,1.734651]
[1673799809740,0.4811275,20912.0,20911.0,1.434651]
[1673799810006,0.4811275,20912.0,20911.0,0.956434]
[1673799810007,0.21239462,20912.0,20911.0,0.956434]
[1673799810238,0.21239462,20912.0,20911.0,0.478217]
[1673799810481,0.68950994,20912.0,20911.0,0.569217]
[1673799810973,0.57275013,20912.0,20911.0,0.091]
[1673799811727,0.57275013,20912.0,20911.0,0.09086376]
[1673799812943,0.36701013,20912.0,20911.0,0.09094652]
[1673799813190,0.00665462,20912.0,20911.0,1.04738052]
[1673799813428,0.00665462,20912.0,20911.0,1.52772294]
[1673799813698,0.00665462,20912.0,20911.0,1.90552294]
[1673799813966,0.00665462,20912.0,20911.0,1.62509776]
[1673799814451,0.00665462,20912.0,20911.0,2.00132133]
[1673799815194,0.00665462,20912.0,20911.0,1.80132133]
[1673799815955,0.00665462,20912.0,20911.0,1.62509776]
[1673799816712,0.00665462,20912.0,20911.0,1.62518052]
[1673799816949,0.00665462,20912.0,20911.0,2.10238221]
[1673799817690,0.00665462,20912.0,20911.0,2.50061261]
[1673799817930,0.00665462,20912.0,20911.0,2.10238221]
[1673799818420,0.11350462,20912.0,20911.0,1.12509776]
[1673799818668,0.11350462,20912.0,20911.0,0.09086376]
[1673799818669,0.60350637,20912.0,20911.0,0.09086376]
[1673799819663,0.21239462,20912.0,20911.0,0.09086376]
[1673799820193,0.53297162,20912.0,20911.0,0.09086376]
[1673799820427,0.97533058,20912.0,20911.0,0.09086376]
[1673799820681,0.21239462,20912.0,20911.0,0.09086376]
[1673799820923,0.53297162,20912.0,20911.0,0.09086376]
[1673799821689,0.61077162,20912.0,20911.0,0.09086376]
[1673799821936,1.63725808,20912.0,20911.0,0.09086376]
[1673799822175,1.16676562,20912.0,20907.0,0.4795797]
[1673799822429,0.0778,20909.0,20907.0,0.4795797]
[1673799822669,0.320577,20908.0,20907.0,0.0012767]
[1673799822916,0.0778,20909.0,20907.0,0.0012767]
[1673799823650,0.48118443,20908.0,20907.0,0.0012767]
[1673799824185,0.48100734,20908.0,20907.0,0.0012767]
[1673799824683,0.56500734,20908.0,20907.0,0.0012767]
[1673799824930,0.36754,20908.0,20907.0,0.0012767]
[1673799825184,2.228217,20908.0,20907.0,0.0012767]
[1673799825931,2.144217,20908.0,20907.0,0.0012767]
[1673799826485,2.221317,20908.0,20907.0,0.0012767]
[1673799826677,2.72547742,20908.0,20907.0,0.0012767]
[1673799826916,2.235217,20908.0,20907.0,0.0012767]
[1673799827155,2.144217,20908.0,20907.0,0.0012767]
[1673799827399,2.235217,20908.0,20907.0,0.0012767]
[1673799827650,2.144217,20908.0,20907.0,0.0012767]
[1673799827895,2.235217,20908.0,20907.0,0.0012767]
[1673799828367,2.60070129,20908.0,20907.0,0.0012767]
[1673799829358,2.28012429,20908.0,20907.0,0.0012767]
[1673799829597,2.60070129,20908.0,20907.0,0.0012767]
[1673799829845,2.119574,20908.0,20907.0,0.0012767]
[1673799832269,3.65730442,20908.0,20907.0,0.0012767]
[1673799832518,3.95730442,20908.0,20907.0,0.0012767]
[1673799833097,3.65730442,20908.0,20907.0,0.0012767]
[1673799833365,3.56630442,20908.0,20907.0,0.0012767]
[1673799833622,3.56630442,20908.0,20902.0,0.40153242]
[1673799833623,0.43398113,20907.0,20902.0,0.40153242]
[1673799833880,0.0771,20905.0,20903.0,0.39871952]
[1673799834129,0.0771,20905.0,20903.0,0.40022601]
[1673799834376,0.0771,20905.0,20903.0,0.00150649]
[1673799834635,0.51178113,20907.0,20903.0,0.30150649]
[1673799834636,0.42735447,20906.0,20903.0,0.30150649]
[1673799834893,0.42735447,20906.0,20904.0,0.46008082]
[1673799835161,0.084,20905.0,20904.0,0.46008082]
[1673799835416,0.084,20905.0,20904.0,1.71683482]
[1673799836162,0.084,20905.0,20904.0,1.41683482]
[1673799836446,0.10685,20905.0,20904.0,1.41683482]
[1673799836789,0.50691097,20906.0,20904.0,1.41683482]
[1673799837032,0.41591097,20906.0,20904.0,1.41683482]
[1673799837292,1.81967,20908.0,20904.0,1.41683482]
[1673799837293,0.011,20905.0,20904.0,0.956754]
[1673799837822,0.011,20905.0,20904.0,1.32137129]
[1673799838071,0.38764149,20907.0,20905.0,0.47183827]
[1673799838323,0.38764149,20907.0,20905.0,1.42852327]
[1673799838324,0.084,20906.0,20905.0,1.42852327]
[1673799838571,0.38764149,20907.0,20905.0,1.42852327]
[1673799839591,0.38764149,20907.0,20905.0,1.43002961]
[1673799839854,0.47864149,20907.0,20905.0,1.42852327]
[1673799840660,0.091,20907.0,20906.0,0.38598192]
[1673799840940,0.091,20907.0,20906.0,1.34264392]
[1673799841191,0.091,20907.0,20906.0,1.64264392]
[1673799841444,0.091,20907.0,20906.0,1.34264392]
[1673799841698,0.091,20907.0,20906.0,1.64264392]
[1673799842243,0.18989,20907.0,20906.0,0.956662]
[1673799842506,0.62637084,20907.0,20905.0,0.478334]
[1673799842763,0.71737084,20907.0,20905.0,0.478334]
[1673799843572,0.62637084,20907.0,20905.0,0.478334]
[1673799843824,0.71737084,20907.0,20905.0,0.478334]
[1673799845041,0.1683,20907.0,20906.0,0.0085]
[1673799845297,0.091,20907.0,20906.0,1.84542487]
[1673799845550,0.091,20907.0,20906.0,1.87484082]
[1673799846081,0.38500264,20910.0,20906.0,1.73249892]
[1673799846343,0.082,20907.0,20906.0,1.67702985]
[1673799846618,2.26600608,20912.0,20907.0,0.2]
[1673799846885,0.47201608,20912.0,20908.0,1.15577395]
[1673799847238,0.48524084,20911.0,20908.0,1.15577395]
[1673799847487,0.081,20910.0,20908.0,1.40458082]
[1673799848010,0.081,20910.0,20909.0,0.4011984]
[1673799848269,0.081,20910.0,20909.0,1.3662224]
[1673799848787,0.39366841,20911.0,20909.0,0.0085]
[1673799849038,0.39366841,20911.0,20910.0,0.0085]
[1673799849545,0.39366841,20911.0,20909.0,0.0085]
[1673799850087,0.47466841,20911.0,20909.0,0.0095]
[1673799850343,0.47466841,20911.0,20910.0,0.001]
[1673799850593,0.39366841,20911.0,20909.0,0.0085]
[1673799851641,0.47466841,20911.0,20909.0,0.0095]
[1673799852907,0.47466841,20911.0,20909.0,0.487762]
[1673799853927,0.081,20911.0,20910.0,0.35221424]
[1673799854180,0.081,20911.0,20910.0,1.31719424]
[1673799855018,0.00665462,20912.0,20910.0,1.31719424]
[1673799855269,0.081,20911.0,20910.0,0.96598]
[1673799856040,0.00665462,20912.0,20911.0,0.40865054]
[1673799856351,0.08765462,20912.0,20911.0,1.37358454]
[1673799856908,0.00665462,20912.0,20911.0,1.37358454]
[1673799857706,0.00665462,20912.0,20911.0,1.8173683]
[1673799858217,0.08765462,20912.0,20911.0,2.0669096]
[1673799858473,0.08765462,20912.0,20911.0,1.9245677]
[1673799858724,0.08765462,20912.0,20911.0,2.06690103]
[1673799859030,0.00665462,20912.0,20911.0,2.06590103]
[1673799859276,0.02265462,20912.0,20911.0,1.81935973]
[1673799859520,0.00665462,20912.0,20911.0,1.37358454]
[1673799859772,0.01565462,20912.0,20911.0,1.38258454]
[1673799860518,0.12250462,20912.0,20911.0,0.90436754]
[1673799861027,0.12239559,20912.0,20911.0,0.42615054]
[1673799861524,0.12239559,20912.0,20911.0,0.42622262]
[1673799861792,0.12239559,20912.0,20911.0,0.42615054]
[1673799862049,0.12239559,20912.0,20911.0,0.01759823]
[1673799862880,0.12239559,20912.0,20911.0,0.01767031]
[1673799863063,0.01554559,20912.0,20911.0,0.01767031]
[1673799863562,0.01554559,20912.0,20911.0,0.01759823]
[1673799863822,0.01554559,20912.0,20911.0,0.01767031]
[1673799864093,0.01554559,20912.0,20911.0,0.3743063]
[1673799864329,0.01554559,20912.0,20911.0,0.8525233]
[1673799864586,0.01054559,20912.0,20911.0,0.8525233]
[1673799865907,0.01054559,20912.0,20911.0,1.3307403]
[1673799866437,0.01054559,20912.0,20911.0,1.77307363]
[1673799866709,0.01054559,20912.0,20911.0,1.6307403]
[1673799866986,0.01054559,20912.0,20911.0,1.77307363]
[1673799867501,0.01054559,20912.0,20911.0,1.47307363]
[1673799868332,0.01054559,20912.0,20911.0,1.3307403]
[1673799868845,0.01054559,20912.0,20911.0,1.63073688]
[1673799869091,0.01054559,20912.0,20911.0,1.33073688]
[1673799869869,0.01054559,20912.0,20911.0,1.33066822]
[1673799870714,0.13739559,20912.0,20911.0,1.32216822]
[1673799870958,0.03054559,20912.0,20911.0,1.32216822]
[1673799871206,0.03054559,20912.0,20911.0,1.32223688]
[1673799871996,0.03054559,20912.0,20911.0,1.33073688]
[1673799873241,0.03054559,20912.0,20911.0,1.63073688]
[1673799873446,0.03054559,20912.0,20911.0,1.33073688]
[1673799873700,0.03054559,20912.0,20911.0,1.47307021]
[1673799873959,0.03054559,20912.0,20911.0,1.77307021]
[1673799874208,0.03054559,20912.0,20911.0,1.80670086]
[1673799874493,0.03054559,20912.0,20911.0,1.593188]
[1673799875003,0.03054559,20912.0,20911.0,1.94999429]
[1673799875542,0.03054559,20912.0,20911.0,1.593188]
[1673799875840,0.03054559,20912.0,20911.0,1.94499429]
[1673799876109,0.02749104,20912.0,20911.0,1.66090491]
[1673799876366,0.02749104,20912.0,20911.0,2.12663775]
[1673799876619,0.02749104,20912.0,20911.0,2.33856007]
[1673799876909,0.02749104,20912.0,20911.0,2.41626007]
[1673799878783,0.02749104,20912.0,20911.0,2.4162321]
[1673799878784,0.02749104,20912.0,20911.0,2.13182675]
[1673799879305,0.02749104,20912.0,20911.0,1.98648931]
[1673799879563,0.02749104,20912.0,20911.0,2.09375819]
[1673799879846,0.02749104,20912.0,20911.0,2.52213845]
[1673799880359,0.02749104,20912.0,20911.0,2.09375819]
[1673799880608,0.02749104,20912.0,20911.0,2.52213845]
[1673799881131,0.02749104,20912.0,20911.0,2.49196957]
[1673799881421,0.02749104,20912.0,20911.0,2.41486957]
[1673799881680,0.02749104,20912.0,20911.0,1.98648931]
[1673799881930,0.02749104,20912.0,20911.0,2.01665819]
[1673799883000,0.02749104,20912.0,20911.0,2.2837039]
[1673799883263,0.02749104,20912.0,20911.0,2.23255138]
[1673799883538,0.02749104,20912.0,20911.0,2.24503845]
[1673799884101,0.02749104,20912.0,20911.0,2.44503845]
[1673799884362,0.02749104,20912.0,20911.0,2.24503845]
[1673799884626,0.02749104,20912.0,20911.0,2.44503845]
[1673799885456,0.02749104,20912.0,20911.0,2.65208962]
[1673799885706,0.02749104,20912.0,20911.0,2.62192074]
[1673799885991,0.02749104,20912.0,20911.0,2.65208962]
[1673799886248,0.02474194,20912.0,20911.0,2.65208962]
[1673799886799,0.02474194,20912.0,20911.0,2.17488793]
[1673799887053,0.02474194,20912.0,20911.0,1.36873901]
[1673799887304,0.02474194,20912.0,20911.0,1.69459373]
[1673799887567,0.02474194,20912.0,20911.0,1.97925639]
[1673799887848,0.02474194,20912.0,20911.0,1.69459373]
[1673799888346,0.02474194,20912.0,20911.0,1.33878737]
[1673799888604,0.02474194,20912.0,20911.0,1.63878737]
[1673799889997,0.02474194,20912.0,20911.0,2.14486763]
[1673799890243,0.02474194,20912.0,20911.0,2.24518703]
[1673799890507,0.01249092,20912.0,20911.0,2.766137]
[1673799890742,3.616,20914.0,20912.0,0.2]
[1673799890991,3.616,20914.0,20913.0,2.10181242]
[1673799891228,3.616,20914.0,20913.0,2.82845738]
[1673799891490,3.616,20914.0,20913.0,3.02845738]
[1673799891975,3.616,20914.0,20913.0,3.05862626]
[1673799892243,3.617,20914.0,20913.0,3.14262626]
[1673799892475,3.616,20914.0,20913.0,3.06712626]
[1673799892723,3.617,20914.0,20913.0,3.15112626]
[1673799892959,3.6113,20914.0,20913.0,3.44652626]
[1673799893234,3.6113,20914.0,20913.0,3.58385658]
[1673799893473,3.6113,20914.0,20913.0,3.82291658]
[1673799893474,2.78430824,20914.0,20913.0,3.82291658]
[1673799893729,0.44912649,20914.0,20913.0,4.91581692]
[1673799893958,0.00334687,20915.0,20914.0,0.2]
[1673799894222,0.00334687,20915.0,20914.0,3.39563483]
[1673799894461,0.00334687,20915.0,20914.0,3.99625432]
[1673799894714,0.00334687,20915.0,20914.0,3.52211125]
[1673799894950,0.00334687,20915.0,20914.0,2.2611908]
[1673799895199,0.00334687,20915.0,20914.0,2.2769908]
[1673799895438,0.00434687,20915.0,20914.0,2.73329943]